fUSD/lending_fUSD_20240702
["ID","MTS","AMOUNT","RATE_DAILY","PERIOD"]
[330875176,1719889847327,-847.88,0.0002075,2]
[330875177,1719889847336,-2416.0,0.0002075,2]
[330875178,1719889847346,-548.0,0.0002075,2]
[330875179,1719889847355,-2880.11,0.0002075,2]
[330875180,1719889847364,-564.758333,0.00020763,2]
[330875181,1719889847375,-993.813514,0.00020763,2]
[330875182,1719889847385,-1164.987142,0.00020763,2]
[330875183,1719889847395,-176.061881,0.00020763,2]
[330875184,1719889847405,-178.446578,0.00020763,2]
[330875185,1719889847414,-847.137501,0.00020763,2]
[330875186,1719889847424,-246.182452,0.00020763,2]
[330875187,1719889847434,-168.59133221,0.00020799,7]
[330875188,1719889847443,-500.0,0.000208,2]
[330875189,1719889847453,-124440.12675471,0.000208,2]
[330875190,1719889847750,-135718.62007229,0.000208,2]
[330875191,1719889847761,-38221.0,0.00020806,2]
[330875192,1719889847773,-291.0,0.00020806,2]
[330875193,1719889847782,-1198.0,0.00020806,2]
[330875194,1719889847793,-653.486,0.00020806,2]
[330875195,1719889847803,-5175.0,0.00020806,2]
[330875196,1719889847813,-5808.0,0.00020806,2]
[330875197,1719889847823,-1070.0,0.00020806,2]
[330875198,1719889847833,-150.0,0.00020813,4]
[330875199,1719889847842,-150.0,0.00020813,4]
[330875200,1719889847851,-781.68,0.00020821,5]
[330875201,1719889847860,-165.59222527,0.00020844,2]
[330875202,1719889847869,-429.71,0.00020849,2]
[330875203,1719889847879,-895.68794077,0.00020872,2]
[330875204,1719889847889,-6284.6249693,0.00020886,2]
[330875205,1719889847900,-2347.8602318,0.00020886,2]
[330875206,1719889847908,-109367.11909239,0.000209,2]
[330875207,1719889847921,-1146.61732846,0.000209,2]
[330875208,1719889847958,3073.51761569,0.00011199,2]
[330875209,1719889848198,-154.55620136,0.0002,2]
[330875210,1719889848208,-154.55620136,0.0002,2]
[330875211,1719889848217,-154.55620136,0.0002,2]
[330875212,1719889848227,-154.55620136,0.0002,2]
[330875213,1719889848236,-55.44598551,0.0002,2]
[330875214,1719889848263,-471.4955419,0.00018919,2]
[330875215,1719889848273,-99.11021585,0.0002,2]
[330875216,1719889848282,-154.55620136,0.0002,2]
[330875217,1719889848291,-154.55620136,0.0002,2]
[330875218,1719889848300,-154.55620136,0.0002,2]
[330875219,1719889848309,-154.55620136,0.0002,2]
[330875220,1719889848318,-211134.90659515,0.000209,2]
[330875221,1719889848328,-151.19007493,0.00020902,2]
[330875222,1719889848337,-150.0,0.00020925,4]
[330875223,1719889848346,-204.0,0.0002096,2]
[330875224,1719889848355,-204.0,0.0002096,2]
[330875225,1719889848364,-219.0,0.0002096,2]
[330875226,1719889848373,-11188.64669949,0.00021,2]
[330875227,1719889848383,-225.68521838,0.00021,2]
[330875228,1719889848392,-1250.0,0.00021,2]
[330875229,1719889848401,-155.26065487,0.00021,2]
[330875230,1719889848411,-18306.26544146,0.00021,2]
[330875231,1719889848420,-155.0,0.00021,2]
[330875232,1719889848432,-221.0,0.00021,4]
[330875233,1719889848441,-150.0,0.00021,4]
[330875234,1719889848451,-564.758333,0.00021022,2]
[330875235,1719889848460,-993.813514,0.00021022,2]
[330875236,1719889848470,-1164.987142,0.00021022,2]
[330875237,1719889848480,-847.137501,0.00021022,2]
[330875238,1719889848489,-150.0,0.00021038,4]
[330875239,1719889848499,-150.0,0.00021094,4]
[330875240,1719889848508,-781.68,0.00021095,7]
[330875241,1719889848518,-908.75,0.00021108,2]
[330875242,1719889848527,-600.0,0.0002113,2]
[330875243,1719889848536,-150.0,0.0002115,4]
[330875244,1719889848546,-155.511899,0.00021161,2]
[330875245,1719889848555,-155.134509,0.00021161,2]
[330875246,1719889848570,-1000.0,0.000212,2]
[330875247,1719889848579,-150.0,0.00021263,4]
[330875248,1719889848589,-204.0,0.0002127,2]
[330875249,1719889848598,-204.0,0.0002127,2]
[330875250,1719889848609,-204.0,0.0002127,2]
[330875251,1719889848618,-204.0,0.0002127,2]
[330875252,1719889848628,-219.0,0.0002127,2]
[330875253,1719889848639,-564.758333,0.00021282,2]
[330875254,1719889848649,-993.813514,0.00021282,2]
[330875255,1719889848660,-1164.987142,0.00021282,2]
[330875256,1719889848669,-847.137501,0.00021282,2]
[330875257,1719889848680,-1915.0,0.000213,2]
[330875258,1719889848689,-13346.23957545,0.00021365,2]
[330875259,1719889848698,-781.68,0.00021369,9]
[330875260,1719889848708,-150.0,0.00021375,4]
[330875261,1719889848718,-150.0,0.00021375,4]
[330875262,1719889848728,-150.0,0.00021375,4]
[330875263,1719889848738,-150.0,0.00021375,4]
[330875264,1719889848748,-150.0,0.00021375,4]
[330875265,1719889848758,-182.0,0.000214,4]
[330875266,1719889848767,-15946.63243896,0.00021411,2]
[330875267,1719889848776,-152.0,0.00021451,3]
[330875268,1719889848786,-600.0,0.00021453,2]
[330875269,1719889848795,-151.19007497,0.00021478,2]
[330875270,1719889848804,-155.511899,0.00021482,2]
[330875271,1719889848814,-155.134509,0.00021482,2]
[330875272,1719889848823,-150.0,0.00021488,4]
[330875273,1719889848832,-260.0995014,0.000215,2]
[330875274,1719889848842,-151.67873877,0.00021507,2]
[330875275,1719889848851,-853.94,0.00021534,2]
[330875276,1719889848860,-418.94,0.00021534,2]
[330875277,1719889848869,-418.94,0.00021534,2]
[330875278,1719889848878,-853.94,0.00021534,2]
[330875279,1719889848887,-853.94,0.00021534,2]
[330875280,1719889848899,-418.94,0.00021534,2]
[330875281,1719889848908,-430.04,0.00021534,2]
[330875282,1719889848917,-865.09,0.00021534,2]
[330875283,1719889848926,-564.758333,0.00021541,2]
[330875284,1719889848935,-993.813514,0.00021541,2]
[330875285,1719889848945,-1164.987142,0.00021541,2]
[330875286,1719889848954,-847.137501,0.00021541,2]
[330875287,1719889848962,-1137.30161852,0.0002156,2]
[330875288,1719889848971,-246.0,0.0002157,2]
[330875289,1719889848980,-204.0,0.0002157,2]
[330875290,1719889848989,-204.0,0.0002157,2]
[330875291,1719889848999,-204.0,0.0002157,2]
[330875292,1719889849009,-204.0,0.0002157,2]
[330875293,1719889849019,-204.0,0.0002157,2]
[330875294,1719889849028,-219.0,0.0002157,2]
[330875295,1719889849039,-221.0,0.0002157,2]
[330875296,1719889849050,-245.0,0.0002157,2]
[330875297,1719889849060,-150.0,0.000216,4]
[330875298,1719889849069,-151.67873877,0.00021616,2]
[330875299,1719889849079,-182.0,0.0002162,3]
[330875300,1719889849089,-895.68794077,0.00021636,2]
[330875301,1719889849100,-781.68,0.00021643,11]
[330875302,1719889849111,-161.53,0.00021644,2]
[330875303,1719889849120,-356.49,0.00021644,2]
[330875304,1719889849129,-175.73,0.00021644,2]
[330875305,1719889849138,-412.07,0.00021644,2]
[330875306,1719889849147,-150.0,0.00021656,4]
[330875307,1719889849156,-153.01,0.00021671,2]
[330875308,1719889849165,-300.77,0.00021671,2]
[330875309,1719889849174,-150.0,0.00021671,2]
[330875310,1719889849184,-164.87,0.00021671,2]
[330875311,1719889849193,-528.33,0.00021671,2]
[330875312,1719889849202,-300.39,0.00021671,2]
[330875313,1719889849211,-424.24,0.00021671,2]
[330875314,1719889849220,-150.67,0.00021671,2]
[330875315,1719889849229,-354.77,0.00021671,2]
[330875316,1719889849238,-151.65,0.00021671,2]
[330875317,1719889849247,-150.0,0.00021671,2]
[330875318,1719889849256,-150.0,0.00021671,2]
[330875319,1719889849265,-424.24,0.00021671,2]
[330875320,1719889849274,-164.82,0.00021671,2]
[330875321,1719889849283,-354.77,0.00021671,2]
[330875322,1719889849293,-528.33,0.00021671,2]
[330875323,1719889849302,-150.0,0.00021671,2]
[330875324,1719889849312,-150.0,0.00021671,2]
[330875325,1719889849321,-150.0,0.00021671,2]
[330875326,1719889849331,-150.0,0.00021671,2]
[330875327,1719889849339,-354.77,0.00021671,2]
[330875328,1719889849349,-150.0,0.00021671,2]
[330875329,1719889849358,-164.82,0.00021671,2]
[330875330,1719889849368,-424.24,0.00021671,2]
[330875331,1719889849377,-150.0,0.00021671,2]
[330875332,1719889849385,-528.33,0.00021671,2]
[330875333,1719889849394,-500.0,0.00021678,2]
[330875334,1719889849403,-150.0,0.00021713,4]
[330875335,1719889849413,-151.67873877,0.00021726,2]
[330875336,1719889849422,-150.0,0.0002175,4]
[330875337,1719889849431,-761465.352111,0.000218,10]
[330875338,1719889849440,-564.758333,0.00021801,2]
[330875339,1719889849449,-993.813514,0.00021801,2]
[330875340,1719889849458,-1164.987142,0.00021801,2]
[330875341,1719889849467,-847.137501,0.00021801,2]
[330875342,1719889849476,-155.511899,0.00021803,2]
[330875343,1719889849485,-155.134509,0.00021803,2]
[330875344,1719889849494,-6100.0,0.0002182,7]
[330875345,1719889849503,-790.0,0.00021825,2]
[330875346,1719889849512,-150.0,0.00021825,4]
[330875347,1719889849521,-150.0,0.00021827,2]
[330875348,1719889849530,-1830.0,0.00021827,2]
[330875349,1719889849539,-313.762,0.00021827,2]
[330875350,1719889849548,-360.0,0.00021827,2]
[330875351,1719889849557,-813.0,0.00021827,2]
[330875352,1719889849571,-448.0,0.00021827,2]
[330875353,1719889849580,-166.0,0.00021827,2]
[330875354,1719889849589,-151.67873877,0.00021836,2]
[330875355,1719889849598,-155.22029957,0.00021847,3]
[330875356,1719889849609,-150.0,0.00021865,2]
[330875357,1719889849618,-500.0,0.00021873,2]
[330875358,1719889849627,-150.0,0.00021874,2]
[330875359,1719889849636,-246.0,0.0002188,2]
[330875360,1719889849647,-204.0,0.0002188,2]
[330875361,1719889849656,-204.0,0.0002188,2]
[330875362,1719889849665,-204.0,0.0002188,2]
[330875363,1719889849675,-204.0,0.0002188,2]
[330875364,1719889849683,-221.0,0.0002188,2]
[330875365,1719889849692,-204.0,0.0002188,2]
[330875366,1719889849701,-219.0,0.0002188,2]
[330875367,1719889849710,-221.0,0.0002188,2]
[330875368,1719889849719,-204.0,0.0002188,2]
[330875369,1719889849728,-245.0,0.0002188,2]
[330875370,1719889849739,-500.0,0.00021882,2]
[330875371,1719889849748,-500.0,0.00021891,2]
[330875372,1719889849757,-41654.24346857,0.00021899,5]
[330875373,1719889849766,-39233.85846141,0.00021899,5]
[330875374,1719889849776,-500.0,0.00021899,2]
[330875375,1719889849785,-995.2,0.000219,2]
[330875376,1719889849795,-315.72,0.000219,2]
[330875377,1719889849804,-275.5,0.000219,2]
[330875378,1719889849813,-500.0,0.00021908,2]
[330875379,1719889849823,-279.50060283,0.00021917,2]
[330875380,1719889849832,-500.0,0.00021917,2]
[330875381,1719889849841,-500.0,0.00021917,2]
[330875382,1719889849850,-781.68,0.00021917,13]
[330875383,1719889849860,-151.67873877,0.00021918,5]
[330875384,1719889849870,-421.9,0.00021918,2]
[330875385,1719889849879,-178.63,0.00021918,2]
[330875386,1719889849889,-150.74,0.00021918,2]
[330875387,1719889849898,-151.0,0.00021918,2]
[330875388,1719889849908,-151.0,0.00021918,2]
[330875389,1719889849918,-151.0,0.00021918,2]
[330875390,1719889849928,-151.0,0.00021918,2]
[330875391,1719889849937,-151.0,0.00021918,2]
[330875392,1719889849947,-151.0,0.00021918,2]
[330875393,1719889849957,-151.0,0.00021918,2]
[330875394,1719889849969,-151.0,0.00021918,2]
[330875395,1719889849980,-151.0,0.00021918,2]
[330875396,1719889849990,-151.0,0.00021918,2]
[330875397,1719889849999,-151.0,0.00021918,2]
[330875398,1719889850010,-151.0,0.00021918,2]
[330875399,1719889850020,-151.0,0.00021918,2]
[330875400,1719889850031,-151.0,0.00021918,2]
[330875401,1719889850042,-151.0,0.00021918,2]
[330875402,1719889850051,-151.0,0.00021918,2]
[330875403,1719889850061,-150.0,0.00021926,2]
[330875404,1719889850070,-150.0,0.00021938,4]
[330875405,1719889850080,-150.0,0.00021938,4]
[330875406,1719889850090,-150.0,0.00021951,2]
[330875407,1719889850100,-150.0,0.0002196,2]
[330875408,1719889850112,-150.0,0.00021964,2]
[330875409,1719889850123,-735.91619859,0.0002197,2]
[330875410,1719889850133,-700.0,0.0002197,2]
[330875411,1719889850145,-150.0,0.00021982,2]
[330875412,1719889850156,-150.0,0.00021996,2]
[330875413,1719889850166,-708.0,0.00022,4]
[330875414,1719889850175,-500.0,0.00022,2]
[330875415,1719889850185,-2018.40385,0.00022,7]
[330875416,1719889850195,-729.06725919,0.00022,2]
[330875417,1719889850204,-4127.23674646,0.00022,30]
[330875418,1719889850214,-160988.74315258,0.00022,5]
[330875419,1719889850223,-24643.95852302,0.00022,2]
[330875420,1719889850233,-4279.79191873,0.00022,15]
[330875421,1719889850243,-1218.84736467,0.00022,23]
[330875422,1719889850253,-151.67873877,0.00022027,5]
[330875423,1719889850263,-1518.12886528,0.00022043,2]
[330875424,1719889850272,-790.0,0.0002205,2]
[330875425,1719889850282,-150.0,0.0002205,4]
[330875426,1719889850292,-150.0,0.00022065,2]
[330875427,1719889850302,-365.73067679,0.00022068,2]
[330875428,1719889850312,-2000.0,0.00022098,2]
[330875429,1719889850322,-200.0,0.00022098,2]
[330875430,1719889850332,-6293.90337278,0.00022098,2]
[330875431,1719889850342,-150.0,0.00022118,2]
[330875432,1719889850351,-155.511899,0.00022123,2]
[330875433,1719889850361,-155.134509,0.00022123,2]
[330875434,1719889850371,-150.0,0.00022125,4]
[330875435,1719889850380,-151.67873877,0.00022137,5]
[330875436,1719889850390,-150.0,0.0002214,2]
[330875437,1719889850399,-150.0,0.00022141,2]
[330875438,1719889850409,-196.86777187,0.00022152,2]
[330875439,1719889850418,-2405.46549977,0.00022163,2]
[330875440,1719889850428,-150.0,0.00022163,4]
[330875441,1719889850438,-151.15,0.00022164,2]
[330875442,1719889850447,-2103.768,0.00022187,2]
[330875443,1719889850457,-205.0,0.0002219,2]
[330875444,1719889850466,-246.0,0.0002219,2]
[330875445,1719889850475,-204.0,0.0002219,2]
[330875446,1719889850485,-204.0,0.0002219,2]
[330875447,1719889850494,-204.0,0.0002219,2]
[330875448,1719889850503,-204.0,0.0002219,2]
[330875449,1719889850513,-221.0,0.0002219,2]
[330875450,1719889850522,-214.0,0.0002219,2]
[330875451,1719889850532,-204.0,0.0002219,2]
[330875452,1719889850541,-219.0,0.0002219,2]
[330875453,1719889850551,-221.0,0.0002219,2]
[330875454,1719889850562,-214.0,0.0002219,2]
[330875455,1719889850573,-204.0,0.0002219,2]
[330875456,1719889850582,-245.0,0.0002219,2]
[330875457,1719889850591,-781.68,0.00022191,15]
[330875458,1719889850600,-150.0,0.00022199,2]
[330875459,1719889850610,-1280.41932381,0.00022199,2]
[330875460,1719889850619,-2023.04568859,0.00022199,2]
[330875461,1719889850629,-2500.0,0.000222,2]
[330875462,1719889850641,-1250.0,0.000222,2]
[330875463,1719889850650,-1000.0,0.000222,2]
[330875464,1719889850660,-718.27644279,0.00022211,2]
[330875465,1719889850670,-150.0,0.00022219,4]
[330875466,1719889850681,-327.98715037,0.00022222,2]
[330875467,1719889850691,-869.5644617,0.00022222,2]
[330875468,1719889850700,-600.0,0.00022226,2]
[330875469,1719889850713,-150.0,0.00022226,2]
[330875470,1719889850723,-151.67873877,0.00022247,5]
[330875471,1719889850732,-790.0,0.00022275,2]
[330875472,1719889850741,-150.0,0.00022275,4]
[330875473,1719889850751,-1000.0,0.000223,2]
[330875474,1719889850761,-500.0,0.00022318,2]
[330875475,1719889850770,-200.0,0.00022318,2]
[330875476,1719889850779,-500.0,0.00022319,2]
[330875477,1719889850788,-500.0,0.00022319,2]
[330875478,1719889850798,-500.0,0.00022319,2]
[330875479,1719889850807,-200.0,0.00022319,2]
[330875480,1719889850817,-150.0,0.00022326,2]
[330875481,1719889850826,-600.0,0.00022347,2]
[330875482,1719889850837,-151.67873877,0.00022356,5]
[330875483,1719889850847,-150.0,0.00022365,2]
[330875484,1719889850858,-700.0,0.0002237,2]
[330875485,1719889850868,-150.0,0.00022379,2]
[330875486,1719889850878,-150.0,0.00022388,4]
[330875487,1719889850887,-150.0,0.00022391,2]
[330875488,1719889850899,-895.68794077,0.000224,2]
[330875489,1719889850909,-982.0,0.000224,5]
[330875490,1719889850919,-200.0,0.000224,5]
[330875491,1719889850931,-1058.0,0.000224,10]
[330875492,1719889850940,-203.79493447,0.000224,2]
[330875493,1719889850949,-600.0,0.000224,2]
[330875494,1719889850958,-15946.63243896,0.000224,2]
[330875495,1719889850968,-193.16820259,0.000224,4]
[330875496,1719889850978,-13346.23957545,0.000224,2]
[330875497,1719889850988,-204.47380482,0.000224,2]
[330875498,1719889850998,-239.65,0.000224,31]
[330875499,1719889851008,-1684.83514908,0.000224,2]
[330875500,1719889851020,-150.0,0.00022414,2]
[330875501,1719889851030,-150.0,0.00022417,2]
[330875502,1719889851040,-2282.94691963,0.00022429,2]
[330875503,1719889851050,-155.511899,0.00022444,2]
[330875504,1719889851060,-155.134509,0.00022444,2]
[330875505,1719889851069,-5611.934391,0.0002245,2]
[330875506,1719889851079,-4939.2438127,0.0002245,2]
[330875507,1719889851090,-2096.5511298,0.0002245,2]
[330875508,1719889851101,-1845.2420279,0.0002245,2]
[330875509,1719889851110,-1000.0,0.00022464,2]
[330875510,1719889851120,-210.03866322,0.00022465,5]
[330875511,1719889851129,-394.59305831,0.00022465,2]
[330875512,1719889851139,-500.0,0.00022465,4]
[330875513,1719889851149,-500.0,0.00022465,4]
[330875514,1719889851158,-500.0,0.00022465,4]
[330875515,1719889851168,-500.0,0.00022465,4]
[330875516,1719889851178,-455.02034532,0.00022465,4]
[330875517,1719889851190,-500.0,0.00022465,4]
[330875518,1719889851200,-500.0,0.00022465,4]
[330875519,1719889851211,-500.0,0.00022465,4]
[330875520,1719889851221,-500.0,0.00022465,4]
[330875521,1719889851230,-295.21202493,0.00022465,4]
[330875522,1719889851240,-500.0,0.00022465,4]
[330875523,1719889851249,-500.0,0.00022465,4]
[330875524,1719889851259,-500.0,0.00022465,4]
[330875525,1719889851268,-362.35239237,0.00022465,4]
[330875526,1719889851277,-500.0,0.00022465,4]
[330875527,1719889851286,-541.69909329,0.00022465,4]
[330875528,1719889851296,-500.0,0.00022465,4]
[330875529,1719889851305,-563.50017339,0.00022465,4]
[330875530,1719889851314,-500.0,0.00022465,4]
[330875531,1719889851324,-500.0,0.00022465,4]
[330875532,1719889851333,-573.73689676,0.00022465,4]
[330875533,1719889851342,-500.0,0.00022465,4]
[330875534,1719889851352,-629.52808675,0.00022465,4]
[330875535,1719889851361,-500.0,0.00022465,4]
[330875536,1719889851371,-500.0,0.00022465,4]
[330875537,1719889851381,-500.0,0.00022465,4]
[330875538,1719889851390,-500.0,0.00022465,4]
[330875539,1719889851401,-500.0,0.00022465,4]
[330875540,1719889851411,-501.07724654,0.00022465,4]
[330875541,1719889851420,-500.93351102,0.00022465,4]
[330875542,1719889851430,-167.80783969,0.00022465,4]
[330875543,1719889851439,-500.72699659,0.00022465,4]
[330875544,1719889851449,-500.0,0.00022465,4]
[330875545,1719889851458,-544.97545191,0.00022465,4]
[330875546,1719889851467,-501.59714191,0.00022465,4]
[330875547,1719889851476,-500.43890599,0.00022465,4]
[330875548,1719889851485,-501.02023139,0.00022465,4]
[330875549,1719889851495,-500.0,0.00022465,4]
[330875550,1719889851504,-500.0,0.00022465,4]
[330875551,1719889851513,-500.0,0.00022465,4]
[330875552,1719889851523,-500.0,0.00022465,4]
[330875553,1719889851532,-500.0,0.00022465,4]
[330875554,1719889851541,-500.0,0.00022465,4]
[330875555,1719889851551,-500.0,0.00022465,4]
[330875556,1719889851563,-500.0,0.00022465,4]
[330875557,1719889851573,-500.0,0.00022465,4]
[330875558,1719889851583,-440.73391007,0.00022465,4]
[330875559,1719889851593,-500.0,0.00022465,4]
[330875560,1719889851603,-500.0,0.00022465,4]
[330875561,1719889851613,-516.31431205,0.00022465,4]
[330875562,1719889851622,-500.0,0.00022465,4]
[330875563,1719889851631,-500.0,0.00022465,4]
[330875564,1719889851642,-500.0,0.00022465,4]
[330875565,1719889851651,-500.0,0.00022465,4]
[330875566,1719889851661,-500.0,0.00022465,4]
[330875567,1719889851671,-500.0,0.00022465,4]
[330875568,1719889851681,-500.0,0.00022465,4]
[330875569,1719889851691,-500.0,0.00022465,4]
[330875570,1719889851701,-500.0,0.00022465,4]
[330875571,1719889851713,-500.0,0.00022465,4]
[330875572,1719889851725,-500.0,0.00022465,4]
[330875573,1719889851736,-500.0,0.00022465,4]
[330875574,1719889851745,-500.0,0.00022465,4]
[330875575,1719889851757,-245.44365666,0.00022465,4]
[330875576,1719889851766,-200.0,0.00022465,4]
[330875577,1719889851776,-200.0,0.00022465,4]
[330875578,1719889851785,-200.0,0.00022465,4]
[330875579,1719889851795,-200.0,0.00022465,4]
[330875580,1719889851806,-243.00299592,0.00022465,4]
[330875581,1719889851816,-500.0,0.00022465,4]
[330875582,1719889851825,-500.0,0.00022465,4]
[330875583,1719889851836,-308.56895415,0.00022465,4]
[330875584,1719889851846,-500.0,0.00022465,4]
[330875585,1719889851856,-500.0,0.00022465,4]
[330875586,1719889851866,-500.0,0.00022465,4]
[330875587,1719889851875,-500.0,0.00022465,4]
[330875588,1719889851885,-500.0,0.00022465,4]
[330875589,1719889851896,-501.50194637,0.00022465,4]
[330875590,1719889851906,-500.0,0.00022465,4]
[330875591,1719889851916,-500.0,0.00022465,4]
[330875592,1719889852112,-500.0,0.00022465,4]
[330875593,1719889852161,-500.0,0.00022465,4]
[330875594,1719889852172,-500.0,0.00022465,4]
[330875595,1719889852182,-504.96077288,0.00022465,4]
[330875596,1719889852192,-500.0,0.00022465,4]
[330875597,1719889852203,-500.0,0.00022465,4]
[330875598,1719889852212,-500.0,0.00022465,4]
[330875599,1719889852221,-500.0,0.00022465,4]
[330875600,1719889852231,-500.0,0.00022465,4]
[330875601,1719889852241,-502.09118383,0.00022465,4]
[330875602,1719889852252,-500.0,0.00022465,4]
[330875603,1719889852261,-500.0,0.00022465,4]
[330875604,1719889852270,-500.0,0.00022465,4]
[330875605,1719889852281,-500.0,0.00022465,4]
[330875606,1719889852291,-500.0,0.00022465,4]
[330875607,1719889852300,-500.0,0.00022465,4]
[330875608,1719889852309,-500.0,0.00022465,4]
[330875609,1719889852318,-500.0,0.00022465,4]
[330875610,1719889852327,-500.0,0.00022465,4]
[330875611,1719889852337,-500.0,0.00022465,4]
[330875612,1719889852347,-338.91,0.00022465,4]
[330875613,1719889852357,-500.0,0.00022465,4]
[330875614,1719889852367,-500.0,0.00022465,4]
[330875615,1719889852377,-500.0,0.00022465,4]
[330875616,1719889852386,-500.0,0.00022465,4]
[330875617,1719889852400,-500.0,0.00022465,4]
[330875618,1719889852412,-583.53483959,0.00022465,4]
[330875619,1719889852423,-500.0,0.00022465,4]
[330875620,1719889852433,-500.0,0.00022465,4]
[330875621,1719889852442,-500.0,0.00022465,4]
[330875622,1719889852451,-500.0,0.00022465,4]
[330875623,1719889852461,-500.0,0.00022465,4]
[330875624,1719889852470,-500.0,0.00022465,4]
[330875625,1719889852480,-500.0,0.00022465,4]
[330875626,1719889852490,-480.67587676,0.00022465,4]
[330875627,1719889852499,-500.0,0.00022465,4]
[330875628,1719889852509,-500.0,0.00022465,4]
[330875629,1719889852521,-500.0,0.00022465,4]
[330875630,1719889852531,-267.91543585,0.00022465,4]
[330875631,1719889852541,-256.29659067,0.00022465,4]
[330875632,1719889852551,-565.94929904,0.00022465,4]
[330875633,1719889852564,-372.38328115,0.00022465,4]
[330875634,1719889852575,-261.80795142,0.00022465,4]
[330875635,1719889852585,-500.0,0.00022465,4]
[330875636,1719889852595,-500.0,0.00022465,4]
[330875637,1719889852605,-500.0,0.00022465,4]
[330875638,1719889852615,-501.8893821,0.00022465,4]
[330875639,1719889852625,-514.27521329,0.00022465,4]
[330875640,1719889852639,-500.0,0.00022465,4]
[330875641,1719889852648,-500.0,0.00022465,4]
[330875642,1719889852658,-500.0,0.00022465,4]
[330875643,1719889852668,-500.0,0.00022465,4]
[330875644,1719889852677,-500.0,0.00022465,4]
[330875645,1719889852687,-500.0,0.00022465,4]
[330875646,1719889852696,-500.0,0.00022465,4]
[330875647,1719889852706,-500.0,0.00022465,4]
[330875648,1719889852716,-500.0,0.00022465,4]
[330875649,1719889852727,-400.52,0.00022465,4]
[330875650,1719889852737,-407.57625413,0.00022465,4]
[330875651,1719889852747,-500.0,0.00022465,4]
[330875652,1719889852757,-500.0,0.00022465,4]
[330875653,1719889852765,-500.0,0.00022465,4]
[330875654,1719889852775,-171.71988328,0.00022465,4]
[330875655,1719889852786,-500.0,0.00022465,4]
[330875656,1719889852796,-500.0,0.00022465,4]
[330875657,1719889852805,-500.0,0.00022465,4]
[330875658,1719889852815,-500.0,0.00022465,4]
[330875659,1719889852825,-500.0,0.00022465,4]
[330875660,1719889852834,-500.0,0.00022465,4]
[330875661,1719889852845,-500.0,0.00022465,4]
[330875662,1719889852855,-500.0,0.00022465,4]
[330875663,1719889852864,-500.0,0.00022465,4]
[330875664,1719889852874,-500.0,0.00022465,4]
[330875665,1719889852883,-500.0,0.00022465,4]
[330875666,1719889852893,-500.0,0.00022465,4]
[330875667,1719889852904,-425.4,0.00022465,4]
[330875668,1719889852914,-500.0,0.00022465,4]
[330875669,1719889852922,-500.0,0.00022465,4]
[330875670,1719889852933,-500.0,0.00022465,4]
[330875671,1719889852942,-501.42875184,0.00022465,4]
[330875672,1719889852952,-500.0,0.00022465,4]
[330875673,1719889852962,-500.0,0.00022465,4]
[330875674,1719889852971,-500.0,0.00022465,4]
[330875675,1719889852981,-500.0,0.00022465,4]